bitfinex/quotes_ETHUSD_20220111
["timestamp","ask_amount","ask_price","bid_price","bid_amount"]
[1641875365910,0.00625266,3112.9,3112.8,6.05283]
[1641875366112,0.00625266,3112.9,3112.8,7.05283]
[1641875366313,0.00625266,3112.9,3112.8,1.6]
[1641875366713,0.00625266,3112.9,3112.8,0.6]
[1641875366913,0.00625266,3112.9,3112.8,0.3]
[1641875367113,0.00625266,3112.9,3112.8,6.65287]
[1641875367313,0.00625266,3112.9,3112.8,6.69748875]
[1641875367515,0.00625266,3112.9,3112.8,8.29748875]
[1641875367713,0.00625266,3112.9,3112.8,7.49461875]
[1641875367914,0.00625266,3112.9,3112.8,7.45]
[1641875368113,0.00625266,3112.9,3112.8,1.6]
[1641875368319,0.00625266,3112.9,3112.8,1.0]
[1641875368516,0.00625266,3112.9,3112.8,0.3]
[1641875368715,0.00625266,3112.9,3112.3,1.2022]
[1641875368913,0.00625266,3112.9,3112.2,18.78]
[1641875369116,0.00645681,3113.0,3112.2,18.78]
[1641875369117,0.00568424,3112.8,3112.2,18.78]
[1641875369360,0.00568424,3112.8,3112.3,0.803]
[1641875369559,0.00511581,3112.7,3112.3,0.803]
[1641875369961,0.00454739,3112.6,3112.3,1.103]
[1641875370162,0.00454739,3112.6,3112.3,2.403]
[1641875370359,0.00397897,3112.5,3112.3,1.6]
[1641875370760,0.00341054,3112.4,3112.3,7.15]
[1641875374420,0.00341054,3112.4,3112.3,1.6]
[1641875374614,0.00341054,3112.4,3112.3,0.6]
[1641875374815,0.00341054,3112.4,3112.1,1.6]
[1641875375022,0.00341054,3112.4,3112.1,1.0]
[1641875375218,0.00284212,3112.3,3112.1,1.3]
[1641875375415,0.00284212,3112.3,3112.0,3.72]
[1641875375617,0.0022737,3112.2,3112.0,3.72]
[1641875376016,0.00170527,3112.1,3112.0,3.72]
[1641875376618,0.00170527,3112.1,3112.0,5.32]
[1641875380266,0.00170527,3112.1,3111.5,6.6648]
[1641875380530,0.00170527,3112.1,3111.5,1.2054]
[1641875380714,0.00113685,3112.0,3111.6,0.00113684]
[1641875381215,0.00511581,3112.7,3111.6,0.00113684]
[1641875381614,0.00454739,3112.6,3111.6,0.00113684]
[1641875381916,0.00397897,3112.5,3111.6,0.00113684]
[1641875382320,0.00341054,3112.4,3111.6,0.00113684]
[1641875382715,0.00284212,3112.3,3111.6,0.00113684]
[1641875383115,0.0022737,3112.2,3111.6,0.00113684]
[1641875383515,0.00170527,3112.1,3111.6,0.00113684]
[1641875383915,0.00113685,3112.0,3111.6,0.00113684]
[1641875384365,0.00511581,3112.7,3111.6,0.00113684]
[1641875384764,0.00454739,3112.6,3111.6,0.00113684]
[1641875385165,0.00397897,3112.5,3111.6,0.00113684]
[1641875385570,0.03319159,3112.4,3111.6,0.00113684]
[1641875385766,0.00341054,3112.4,3111.6,0.00113684]
[1641875385968,0.00284212,3112.3,3111.6,0.00113684]
[1641875386366,0.0022737,3112.2,3111.6,0.00113684]
[1641875386768,0.00170527,3112.1,3111.6,0.00113684]
[1641875387175,0.00113685,3112.0,3111.6,0.00113684]
[1641875387572,0.00511581,3112.7,3111.6,0.00113684]
[1641875388015,0.00454739,3112.6,3111.6,0.00113684]
[1641875388410,0.00397897,3112.5,3111.6,0.00113684]
[1641875388813,0.00341054,3112.4,3111.6,0.00113684]
[1641875389213,0.00284212,3112.3,3111.6,0.00113684]
[1641875389512,4.76380284,3112.8,3111.6,0.00113684]
[1641875389513,0.0022737,3112.2,3111.6,0.00113684]
[1641875390013,0.00170527,3112.1,3111.6,0.00113684]
[1641875390518,0.00113685,3112.0,3111.6,0.00113684]
[1641875391018,0.00511581,3112.7,3111.6,0.00113684]
[1641875391414,0.00454739,3112.6,3111.6,0.00113684]
[1641875391863,0.00397897,3112.5,3111.6,0.00113684]
[1641875392066,0.00397897,3112.5,3111.6,0.80431684]
[1641875392267,0.00341054,3112.4,3111.8,0.8031]
[1641875392466,0.00341054,3112.4,3111.8,1.1031]
[1641875392665,0.00284212,3112.3,3111.9,1.60603]
[1641875393067,0.0022737,3112.2,3111.9,2.60603]
[1641875393267,0.0022737,3112.2,3111.9,3.4090426]
[1641875393467,0.00170527,3112.1,3111.9,2.60603]
[1641875393865,0.00113685,3112.0,3111.9,2.60603]
[1641875394265,0.00738951,3112.0,3111.9,6.73458644]
[1641875399015,0.00738951,3112.0,3111.9,6.81491644]
[1641875400460,0.00738951,3112.0,3111.9,1.68636]
[1641875400660,0.00738951,3112.0,3111.8,0.8031]
[1641875401060,0.00738951,3112.0,3111.9,0.80305]
[1641875401259,0.00738951,3112.0,3111.9,4.00305]
[1641875402059,0.00738951,3112.0,3111.9,2.40305]
[1641875402463,0.00738951,3112.0,3111.9,4.50305]
[1641875402659,0.00738951,3112.0,3111.9,5.50305]
[1641875403331,8.7628,3113.2,3111.9,5.50305]
[1641875403332,8.7628,3113.2,3112.0,5.8]
[1641875403523,1.19201645,3114.6,3112.8,1.14990454]
[1641875403524,1.69522919,3113.8,3112.8,1.14990454]
[1641875403717,1.69522919,3113.8,3112.8,0.38045263]
[1641875403914,1.69522919,3113.8,3112.8,0.68045263]
[1641875404114,1.69522919,3113.8,3112.9,0.0445077]
[1641875404316,0.128795,3113.8,3112.9,0.0445077]
[1641875404714,0.128795,3113.8,3113.0,0.80283]
[1641875404916,0.128795,3113.8,3113.0,1.40283]
[1641875405317,0.128795,3113.8,3113.0,20.18283]
[1641875405714,0.128795,3113.8,3113.1,1.0]
[1641875406962,0.128795,3113.8,3113.0,4.95591803]
[1641875407267,0.00341054,3113.7,3113.1,1.0]
[1641875407562,0.00284212,3113.6,3113.1,1.0]
[1641875407962,0.00227369,3113.5,3113.0,1.40283]
[1641875408463,0.00170527,3113.4,3113.0,1.40283]
[1641875408964,0.00113685,3113.3,3113.0,1.40283]
[1641875411221,0.00113685,3113.3,3113.0,0.6]
[1641875411417,0.0278236,3113.2,3112.8,0.08045263]
[1641875411618,0.01535748,3113.2,3112.8,0.08045263]
[1641875411914,0.01535748,3113.2,3112.9,0.00113685]
[1641875412315,0.00113685,3113.3,3112.9,0.00113685]
[1641875414022,0.00113685,3113.3,3113.0,1.10283]
[1641875414472,0.00113685,3113.3,3113.0,0.3]
[1641875414673,0.14250048,3113.2,3112.9,0.30113685]
[1641875414873,0.14250048,3113.1,3112.9,0.00113685]
[1641875420012,0.14250048,3113.0,3112.9,0.00113685]
[1641875420213,0.14250048,3113.0,3112.6,0.00284212]
[1641875420413,0.14250048,3113.0,3112.7,0.8029]
[1641875420614,0.14250048,3113.0,3112.8,3.54139891]
[1641875420814,0.14250048,3113.0,3112.8,0.00170527]
[1641875421014,0.14250048,3113.0,3112.9,4.65]
[1641875421213,0.14250048,3113.0,3112.9,3.65]
[1641875421413,0.14250048,3113.0,3112.9,4.95]
[1641875424670,0.14250048,3113.0,3112.9,8.58509293]
[1641875425526,0.28500096,3113.0,3112.9,8.58509293]
[1641875427020,0.28500096,3113.0,3112.9,4.95]
[1641875427520,0.28500096,3113.0,3112.9,1.6]
[1641875427922,0.28500096,3113.0,3112.9,0.3]
[1641875428123,0.28500096,3113.0,3112.8,0.00170527]
[1641875428323,0.28500096,3113.0,3112.8,0.30170527]
[1641875428522,0.14250048,3113.0,3112.6,0.00284212]
[1641875428723,0.14250048,3112.9,3112.6,0.00284212]
[1641875429570,0.14250048,3112.9,3112.7,0.80289]
[1641875429969,0.14250048,3112.9,3112.8,0.00170527]
[1641875430170,0.14250048,3112.9,3112.8,2.75170527]
[1641875430367,0.14250048,3112.9,3112.8,4.35]
[1641875430569,0.14250048,3112.9,3112.8,4.35170527]
[1641875430768,0.28500096,3112.9,3112.8,4.35170527]
[1641875433418,0.28500096,3112.9,3112.8,4.05170527]
[1641875434718,0.28500096,3112.9,3112.8,4.35170527]
[1641875434916,0.28500096,3112.9,3112.8,4.05170527]
[1641875435117,0.28500096,3112.9,3112.8,4.35170527]
[1641875436418,0.28500096,3112.9,3112.8,4.39621297]
[1641875436617,0.28500096,3112.9,3112.8,5.19909297]
[1641875438867,0.28500096,3112.9,3112.8,4.39621297]
[1641875443634,0.28500096,3112.9,3112.8,1.64621297]
[1641875443832,0.28500096,3112.9,3112.8,0.64621297]
[1641875444035,0.28500096,3112.9,3112.8,0.00170527]
[1641875444469,0.28500096,3112.9,3112.6,0.00284212]
[1641875444870,1.1865,3113.3,3112.5,0.3]
[1641875445073,0.28500096,3112.7,3112.6,0.00284212]
[1641875445471,0.28500096,3112.7,3112.5,0.00341054]
[1641875445668,0.28500096,3112.7,3112.6,0.00284212]
[1641875445870,0.28500096,3112.7,3112.5,0.00341054]
[1641875446069,0.28500096,3112.7,3112.3,0.00454739]
[1641875447170,0.28500096,3112.7,3112.3,1.04905509]
[1641875447369,0.28500096,3112.7,3112.3,4.52230088]
[1641875447573,0.28500096,3112.7,3112.4,0.00397897]
[1641875448026,0.28500096,3112.7,3112.4,0.80694897]
[1641875448419,0.28500096,3112.7,3112.5,0.30341054]
[1641875448819,0.28500096,3112.7,3112.6,3.65284212]
[1641875449019,0.28500096,3112.7,3112.6,4.95284212]
[1641875450727,0.28500096,3112.7,3112.6,8.75284212]
[1641875450922,0.28500096,3112.7,3112.6,5.25284212]
[1641875454271,0.28500096,3112.7,3112.6,8.85994411]
[1641875456917,0.28500096,3112.7,3112.6,5.25284212]
[1641875462673,0.28500096,3112.7,3112.6,1.60284212]
[1641875463122,0.28500096,3112.7,3112.6,0.60284212]
[1641875463318,0.28500096,3112.7,3112.6,0.30284212]
[1641875463522,3.7478,3113.2,3112.6,0.30284212]
[1641875463523,3.7478,3113.2,3112.7,5.8]
[1641875463721,3.7478,3113.2,3112.8,1.0]
[1641875463922,0.00113685,3113.3,3112.8,1.50721297]
[1641875464121,0.00113685,3113.3,3112.9,18.86029]
[1641875464322,7.78853122,3114.1,3113.5,0.9777562]
[1641875464520,7.78853122,3114.1,3113.2,19.241]
[1641875464720,0.00170527,3113.6,3113.2,20.541]
[1641875465019,0.00113684,3113.5,3113.3,1.0445077]
[1641875465420,2.73472324,3114.0,3113.4,0.3]
[1641875465819,0.00341054,3113.9,3113.4,1.90527]
[1641875466019,0.00341054,3113.9,3113.4,2.20527]
[1641875466225,0.00284211,3113.8,3113.4,0.3]
[1641875466523,0.00227369,3113.7,3113.4,0.3]
[1641875466763,0.00227369,3113.7,3113.3,0.0445077]
[1641875467065,0.00284211,3113.8,3113.3,2.70129454]
[1641875467464,0.00227369,3113.7,3113.4,1.0]
[1641875467666,0.00227369,3113.7,3113.4,1.3]
[1641875467866,0.00341054,3113.9,3113.5,3.51089136]
[1641875468064,0.00341054,3113.9,3113.6,1.0]
[1641875468270,0.00284211,3113.8,3113.6,1.0]
[1641875468765,0.00227369,3113.7,3113.6,4.05]
[1641875468964,0.00227369,3113.7,3113.6,7.58121457]
[1641875469164,0.00227369,3113.7,3113.6,4.05]
[1641875470167,0.00227369,3113.7,3113.6,7.59756092]
[1641875471219,0.00227369,3113.7,3113.6,7.62174487]
[1641875471615,0.00227369,3113.7,3113.6,7.10958767]
[1641875472015,0.00227369,3113.7,3113.6,3.8]
[1641875472716,0.00227369,3113.7,3113.6,1.0]
[1641875472915,0.00227369,3113.7,3113.5,0.6]
[1641875473116,0.00227369,3113.7,3113.5,0.3]
[1641875473321,0.00227369,3113.7,3113.4,1.6]
[1641875475371,0.00227369,3113.7,3113.5,19.58265]
[1641875475571,0.00227369,3113.7,3113.6,6.55]
[1641875475975,0.00227369,3113.7,3113.6,6.85]
[1641875476372,0.00227369,3113.7,3113.6,6.93028]
[1641875476773,0.00227369,3113.7,3113.6,7.69628]
[1641875479620,3.6184,3114.6,3113.7,4.55]
[1641875479823,3.6184,3114.6,3114.1,0.80256]
[1641875480021,0.00454739,3114.5,3114.1,0.80256]
[1641875480223,0.00454739,3114.5,3114.1,1.10256]
[1641875480423,0.01208543,3115.2,3114.2,6.1]
[1641875480727,0.00113685,3114.6,3114.3,7.42170263]
[1641875480921,0.00113685,3114.6,3114.4,0.80238]
[1641875481134,0.00682109,3115.6,3114.5,5.88025]
[1641875481327,0.00682109,3115.6,3114.6,0.461]
[1641875481522,5.22462,3115.7,3114.6,0.461]
[1641875481523,0.00625266,3115.5,3114.6,0.461]
[1641875481970,0.00568424,3115.4,3114.6,0.461]
[1641875482372,0.00511581,3115.3,3114.7,18.78]
[1641875482571,0.00511581,3115.3,3114.8,2.32464617]
[1641875482770,0.00454739,3115.2,3114.8,22.20691617]
[1641875482970,0.00454739,3115.2,3114.8,22.00929617]
[1641875483171,0.00397897,3115.1,3114.9,1.0]
[1641875483470,0.00655283,3115.6,3115.0,8.4897415]
[1641875483674,0.00655283,3115.6,3115.1,1.0]
[1641875483871,0.00625266,3115.5,3115.2,3.75662326]
[1641875484070,0.00625266,3115.5,3115.3,1.0]
[1641875484271,0.00655283,3115.6,3115.4,7.8107476]
[1641875484472,0.00655283,3115.6,3115.5,3.84828075]
[1641875484671,0.00655283,3115.6,3115.5,1.0]
[1641875484870,0.00655283,3115.6,3115.5,4.66445838]
[1641875485070,0.00655283,3115.6,3115.5,5.41805838]
[1641875485715,0.00655283,3115.6,3115.5,1.7536]
[1641875486516,0.00655283,3115.6,3115.5,0.7536]
[1641875487521,0.12872,3115.7,3115.5,0.7536]
[1641875488120,0.12872,3115.7,3115.5,1.0536]
[1641875488319,3.7265,3116.4,3115.5,1.0536]
[1641875488722,0.00795793,3115.8,3115.5,0.7536]
[1641875489119,0.00738951,3115.7,3115.5,0.7536]
[1641875489578,0.00682109,3115.6,3115.5,0.7536]
[1641875491584,3.68332109,3116.4,3115.5,0.7536]
[1641875491981,0.00397896,3116.3,3115.5,0.7536]
[1641875492381,0.00341054,3116.2,3115.5,0.7536]
[1641875492882,0.00284211,3116.1,3115.5,0.7536]
[1641875493144,0.00227369,3116.0,3115.5,0.7536]
[1641875493545,0.00170527,3115.9,3115.5,0.7536]
[1641875493943,0.00113684,3115.8,3115.5,0.7536]
[1641875494344,0.00341054,3116.2,3115.5,0.7536]
[1641875494744,0.00284211,3116.1,3115.5,0.686734]
[1641875495144,0.00227369,3116.0,3115.5,0.686734]
[1641875495543,0.00170527,3115.9,3115.5,0.686734]
[1641875495944,0.00113684,3115.8,3115.5,0.686734]
[1641875496445,0.00113684,3115.8,3115.0,1.80233]
[1641875496650,0.00113684,3115.8,3115.0,2.10233]
[1641875496873,0.00113684,3115.8,3115.1,0.00284212]
[1641875498067,0.99276321,3115.8,3115.0,0.80574055]
[1641875498267,0.00113684,3115.8,3115.1,3.52122255]
[1641875498467,0.00113684,3115.8,3115.1,3.52406467]
[1641875498667,0.00113684,3115.8,3115.2,1.0022737]
[1641875499067,0.00113684,3115.8,3115.3,0.00170528]
[1641875499271,1.04499306,3115.8,3115.3,0.00170528]
[1641875499766,1.04499306,3115.8,3115.2,0.0022737]
[1641875500367,1.04499306,3115.8,3115.0,1.00341055]
[1641875500620,1.04499306,3115.8,3115.1,0.00284212]
[1641875501017,0.00113684,3115.8,3115.1,3.54649734]
[1641875501216,0.00113684,3115.8,3115.1,0.00284212]
[1641875501415,0.00113684,3115.8,3115.2,1.0022737]
[1641875501615,0.00113684,3115.8,3115.2,0.3]
[1641875501819,0.00113684,3115.8,3115.3,0.00170528]
[1641875502222,0.00113684,3115.8,3115.1,0.00284212]
[1641875502415,0.00113684,3115.8,3114.9,0.00397897]
[1641875502616,0.00113684,3115.8,3114.8,0.00454739]
[1641875503216,0.95092133,3115.5,3114.8,0.00454739]
[1641875503419,1.45213464,3115.6,3114.8,0.00454739]
[1641875504369,3.62940203,3115.5,3114.8,0.00454739]
[1641875504765,3.60968244,3115.5,3114.8,0.00454739]
[1641875504966,1.45213464,3115.6,3114.8,0.00454739]
[1641875505165,1.45213464,3115.6,3114.8,1.00454739]
[1641875505366,4.09982356,3115.8,3114.8,1.00454739]
[1641875505367,0.00113684,3115.8,3114.8,1.00454739]
[1641875505572,0.00113684,3115.8,3114.9,0.00397897]
[1641875505768,3.61978188,3115.8,3114.9,0.00397897]
[1641875506371,3.62644017,3115.8,3114.9,0.00397897]
[1641875507375,0.00113684,3115.8,3114.9,0.00397897]
[1641875507571,3.64385469,3115.8,3114.9,0.00397897]
[1641875510423,0.00757216,3115.8,3114.9,0.00397897]
[1641875510621,3.64010025,3115.8,3114.9,0.00397897]
[1641875511866,0.00757216,3115.8,3114.9,0.00397897]
[1641875512170,3.64859169,3115.8,3114.9,0.00397897]
[1641875512568,0.00757216,3115.8,3114.9,0.00397897]
[1641875514270,0.00757216,3115.8,3115.1,0.80229]
[1641875514676,0.00757216,3115.8,3115.2,0.0022737]
[1641875517523,0.00113684,3115.8,3115.2,0.0022737]
[1641875519375,2.73051912,3115.8,3115.2,0.0022737]
[1641875522679,0.00761601,3115.8,3115.2,0.0022737]
[1641875525624,0.00761601,3115.8,3115.4,0.80221]
[1641875525822,0.00761601,3115.8,3115.5,0.08024]
[1641875526022,0.00761601,3115.8,3115.5,32.34470562]
[1641875526220,0.00647917,3115.8,3115.6,0.04903748]
[1641875526420,0.00647917,3115.8,3115.7,0.08022]
[1641875526622,5.0977,3116.4,3115.7,0.935443]
[1641875526875,5.0977,3116.4,3116.0,0.80199]
[1641875527070,1.1485,3116.4,3116.0,1.86539]
[1641875527271,0.9365281,3116.6,3116.0,1.86539]
[1641875527676,0.00454738,3116.4,3116.0,1.86539]
[1641875528072,0.00397896,3116.3,3116.0,1.86539]
[1641875528473,0.00341054,3116.2,3116.0,2.86539]
[1641875528771,0.00284211,3116.1,3116.0,2.86539]
[1641875528971,0.00284211,3116.1,3116.0,8.01539]
[1641875532426,0.00284211,3116.1,3116.0,11.78736497]
[1641875532826,0.00284211,3116.1,3116.0,8.31539]
[1641875533026,0.00284211,3116.1,3116.0,8.61539]
[1641875533225,0.00284211,3116.1,3116.0,8.6956]
[1641875533627,0.9365281,3116.6,3116.1,5.15]
[1641875533825,0.9365281,3116.6,3116.1,5.45]
[1641875534028,0.0022737,3116.5,3116.3,0.80199]
[1641875534268,0.0022737,3116.5,3116.3,1.10199]
[1641875534469,0.9365281,3116.6,3116.3,0.3]
[1641875534470,0.00170527,3116.4,3116.3,0.3]
[1641875534669,0.00170527,3116.4,3116.2,1.3]
[1641875535071,0.00113685,3116.3,3116.2,1.3]
[1641875535872,0.00113685,3116.3,3116.2,4.3]
[1641875536273,0.00113685,3116.3,3116.2,1.3]
[1641875536674,0.00113685,3116.3,3116.2,0.3]
[1641875537074,0.00113685,3116.3,3116.1,1.0]
[1641875537274,0.00113685,3116.3,3116.0,2.74361]
[1641875537675,0.00113685,3116.3,3116.1,0.04470901]
[1641875548957,0.02546604,3116.2,3116.0,1.0634]
[1641875549158,0.00113685,3116.3,3116.0,1.0634]
[1641875551269,3.68880042,3116.3,3116.0,1.0634]
[1641875551675,0.00113685,3116.3,3116.0,1.0634]
[1641875555152,0.00113685,3116.3,3115.5,1.0]
[1641875555552,0.00113685,3116.3,3115.6,0.00284211]
[1641875555952,0.00113685,3116.3,3115.7,0.80216]
[1641875556155,0.00113685,3116.3,3115.7,1.10216]
[1641875556351,0.00113685,3116.3,3115.8,0.00170527]
[1641875558576,0.00113685,3116.3,3115.7,0.00227369]
[1641875558779,0.00113685,3116.3,3115.8,1.03010901]
[1641875559073,0.00113685,3116.3,3115.9,0.30113684]
[1641875559874,0.00113685,3116.3,3115.9,0.00113684]
[1641875561524,0.00113685,3116.3,3115.9,0.30113684]
[1641875562125,0.00113685,3116.3,3115.9,0.00113684]
[1641875562526,0.00113685,3116.3,3115.7,0.30227369]
[1641875562826,0.00113685,3116.3,3115.8,0.00170527]
[1641875563229,0.00113685,3116.3,3115.7,0.00227369]
[1641875564770,0.00113685,3116.3,3115.7,1.00227369]
[1641875565170,0.00113685,3116.3,3115.8,0.00170527]
[1641875565369,2.14293449,3116.6,3115.8,0.00170527]
[1641875565772,0.0022737,3116.5,3115.8,0.00170527]
[1641875566173,0.00170527,3116.4,3115.8,0.00170527]
[1641875566572,2.14293449,3116.6,3115.8,0.00170527]
[1641875566573,0.00113685,3116.3,3115.8,0.00170527]
[1641875567174,0.00113685,3116.3,3115.8,3.59725127]
[1641875567574,0.00113685,3116.3,3115.9,1.30113684]
[1641875568024,0.00113685,3116.3,3115.9,0.30113684]
[1641875568223,0.00113685,3116.3,3115.9,0.00113684]
[1641875568423,0.00113685,3116.3,3115.9,0.30113684]
[1641875568623,0.00113685,3116.3,3115.9,1.30113684]
[1641875568823,0.00113685,3116.3,3116.0,3.56620526]
[1641875569029,0.00113685,3116.3,3116.1,1.0]
[1641875569422,0.00113685,3116.3,3115.9,0.30113684]
[1641875569623,0.00113685,3116.3,3115.9,1.30113684]
[1641875570322,0.00113685,3116.3,3116.0,3.51783834]
[1641875570523,0.00113685,3116.3,3116.1,1.0]
[1641875570924,0.00113685,3116.3,3115.9,0.00113684]
[1641875572075,0.00113685,3116.3,3115.7,0.00227369]
[1641875572974,0.00113685,3116.3,3115.7,1.00227369]
[1641875573174,0.00113685,3116.3,3115.8,3.52577063]
[1641875573374,0.00113685,3116.3,3115.8,0.00170527]
[1641875573575,0.00113685,3116.3,3115.9,0.00113684]
[1641875573775,0.00113685,3116.3,3115.9,0.3]
[1641875573978,0.00113685,3116.3,3115.8,0.00170527]
[1641875574376,0.00113685,3116.3,3115.7,0.00227369]
[1641875574778,0.00113685,3116.3,3115.7,4.3258878]
[1641875574979,0.00113685,3116.3,3116.0,0.80212]
[1641875575180,0.9365281,3116.6,3116.1,1.6039]
[1641875575377,0.9365281,3116.6,3116.1,1.60503685]
[1641875575622,0.00113685,3116.5,3116.2,0.3]
[1641875576419,0.00113685,3116.5,3116.2,1.3]
[1641875576620,0.00113685,3116.5,3116.2,0.3]
[1641875576822,0.00113685,3116.5,3116.2,1.3]
[1641875577019,0.00113685,3116.5,3116.2,0.3]
[1641875577223,0.00113685,3116.5,3116.2,1.3]
[1641875577520,0.00113685,3116.5,3116.2,0.3]
[1641875577922,0.00113685,3116.5,3116.2,1.60393]
[1641875578223,0.00113685,3116.5,3116.2,1.90393]
[1641875578823,0.00113685,3116.5,3116.2,5.42879981]
[1641875579125,0.00113685,3116.5,3116.3,1.0]
[1641875579572,0.00113685,3116.5,3116.2,1.90393]
[1641875580172,0.00113685,3116.5,3116.2,1.60393]
[1641875580374,0.00113685,3116.5,3116.3,3.53237713]
[1641875580579,0.00113685,3116.5,3116.4,1.0]
[1641875580774,0.00113685,3116.5,3116.2,1.60393]
[1641875580977,0.00113685,3116.5,3116.1,1.00113685]
[1641875580978,3.66591193,3116.5,3116.1,0.00113685]
[1641875581179,0.00113685,3116.5,3116.1,0.00113685]
[1641875581378,3.66591193,3116.5,3115.5,0.00454739]
[1641875581575,4.81821193,3116.5,3115.3,0.00568424]
[1641875582375,1.15343685,3116.5,3115.3,0.00568424]
[1641875582579,2.72897948,3116.4,3115.3,0.80796424]
[1641875582886,2.72897948,3116.4,3115.4,0.00511581]
[1641875583120,3.86360552,3116.4,3115.4,0.00511581]
[1641875583320,1.13462604,3116.4,3115.3,0.00568424]
[1641875583520,1.13462604,3116.4,3115.3,1.08591424]
[1641875583922,1.15343685,3116.5,3115.6,0.80222]
[1641875584325,1.15343685,3116.5,3115.7,0.00341054]
[1641875584923,0.88222097,3116.2,3115.4,0.00511581]
[1641875585626,0.88222097,3116.2,3115.6,0.80222]
[1641875586024,0.88222097,3116.2,3115.7,0.00341054]
[1641875586230,1.15343685,3116.5,3115.7,0.00341054]
[1641875587078,3.63103521,3116.4,3115.7,0.00341054]
[1641875587274,1.15343685,3116.5,3115.7,0.00341054]
[1641875587476,4.75328412,3116.5,3115.7,0.00341054]
[1641875587678,1.15343685,3116.5,3115.7,0.00341054]
[1641875588479,4.74831494,3116.5,3115.7,0.00341054]
[1641875588678,1.15343685,3116.5,3115.7,0.00341054]
[1641875588879,4.74842378,3116.5,3115.4,0.00511581]
[1641875589080,1.15343685,3116.5,3115.4,0.00511581]
[1641875589684,1.15343685,3116.5,3115.7,0.80219]
[1641875590081,1.15343685,3116.5,3115.8,0.00284212]
[1641875592130,1.15343685,3116.5,3115.8,0.30284212]
[1641875592536,1.15343685,3116.5,3115.9,0.00227369]
[1641875595292,0.00113685,3116.5,3116.0,1.2631]
[1641875595592,0.00113685,3116.5,3116.1,0.0457339]
[1641875595989,0.00113685,3116.5,3116.2,0.04459705]
[1641875596993,0.00113685,3116.5,3116.2,0.34459705]
[1641875597193,0.00113685,3116.5,3116.3,0.08022]
[1641875598023,0.00113685,3116.5,3116.4,4.30202]
[1641875598225,0.00113685,3116.5,3116.4,1.10202]
[1641875598428,0.00113685,3116.5,3116.4,2.40202]
[1641875598627,0.00113685,3116.5,3116.4,1.40202]
[1641875598826,0.00113685,3116.5,3116.4,4.90806292]
[1641875599026,0.00113685,3116.5,3116.4,5.90806292]
[1641875603194,0.00113685,3116.5,3116.4,5.10604292]
[1641875603487,0.00113685,3116.5,3116.4,1.6]
[1641875603684,0.00113685,3116.5,3116.4,3.94470598]
[1641875603887,0.00113685,3116.5,3116.4,5.24470598]
[1641875604285,0.00113685,3116.5,3116.4,1.6]
[1641875604486,0.00113685,3116.5,3116.4,3.15]
[1641875604685,0.00113685,3116.5,3116.4,4.15]
[1641875605523,0.9365281,3116.6,3116.4,4.15]
[1641875605823,0.9365281,3116.6,3116.5,0.3]
[1641875606223,0.93823337,3116.6,3116.5,0.3]
[1641875606425,0.93823337,3116.6,3116.4,7.69715362]
[1641875606625,0.93823337,3116.6,3116.4,4.19526598]
[1641875606824,0.00113685,3116.5,3116.4,4.19526598]
[1641875607129,2.4053,3117.3,3117.0,0.02146524]
[1641875607130,1.1643,3117.3,3117.0,0.02146524]
[1641875607326,3.7767,3117.6,3117.0,1.62500524]
[1641875607525,1.56643419,3118.1,3117.0,2.24880598]
[1641875607728,1.56643419,3118.1,3117.0,3.24880598]
[1641875607925,0.00852635,3118.0,3117.0,3.24880598]
[1641875608325,0.00795792,3117.9,3117.2,0.80177]
[1641875608528,0.00795792,3117.9,3117.3,0.6]
[1641875608732,0.0073895,3117.8,3117.3,0.6]
[1641875608926,0.0073895,3117.8,3117.0,3.24880598]
[1641875609129,0.00682108,3117.7,3117.3,0.3]
[1641875609374,0.00682108,3117.7,3117.1,1.0]
[1641875609575,0.00625265,3117.6,3117.1,1.3]
[1641875610075,0.00568423,3117.5,3117.1,1.3]
[1641875610474,1.42320158,3118.0,3117.1,1.3]
[1641875610475,0.00511581,3117.4,3117.1,1.3]
[1641875610876,0.00454738,3117.3,3117.1,1.3]
[1641875611279,0.00397896,3117.2,3117.1,1.3]
[1641875611475,1.37718054,3118.0,3117.2,3.65]
[1641875611675,1.37718054,3118.0,3117.3,1.0]
[1641875611877,0.00397896,3117.9,3117.3,1.0]
[1641875612077,0.00397896,3117.9,3117.3,0.3]
[1641875612277,0.00341054,3117.8,3117.3,0.3]
[1641875612477,0.00341054,3117.8,3117.0,1.64526598]
[1641875612681,0.00284212,3117.7,3117.0,1.64526598]
[1641875612881,0.00284212,3117.7,3117.0,0.64526598]
[1641875613128,0.00227369,3117.6,3117.1,4.33607162]
[1641875613428,0.00170527,3117.5,3117.1,4.63607162]
[1641875613627,0.00170527,3117.5,3117.2,1.0]
[1641875613829,0.00113685,3117.4,3117.2,1.0]
[1641875614027,0.00113685,3117.4,3117.2,0.3]
[1641875614627,0.00113685,3117.4,3117.0,0.34526598]
[1641875614829,0.00113685,3117.4,3117.0,0.64526598]
[1641875615027,0.00113685,3117.4,3117.0,0.34526598]
[1641875615228,0.00113685,3117.4,3117.0,0.04526598]
[1641875616329,0.00113685,3117.4,3117.1,3.5]
[1641875616532,0.00113685,3117.4,3117.2,1.3]
[1641875616985,0.00113685,3117.4,3117.0,1.44710598]
[1641875617184,0.00113685,3117.4,3117.0,2.24892598]
[1641875617384,0.00113685,3117.4,3117.0,3.24892598]
[1641875618189,0.00113685,3117.4,3117.0,2.44710598]
[1641875619086,0.00113685,3117.4,3117.0,3.24892598]
[1641875619887,0.00113685,3117.4,3117.0,2.44710598]
[1641875620088,0.00113685,3117.4,3117.0,1.44710598]
[1641875620288,0.00113685,3117.4,3117.0,0.64526598]
[1641875620526,0.00113685,3117.4,3117.0,1.34526598]
[1641875620825,0.00113685,3117.4,3117.0,2.24891598]
[1641875621024,0.00113685,3117.4,3117.0,3.24891598]
[1641875621827,0.00113685,3117.4,3117.0,2.44710598]
[1641875622029,0.00113685,3117.4,3117.0,1.44710598]
[1641875622227,0.00113685,3117.4,3117.0,2.44710598]
[1641875622631,0.00113685,3117.4,3117.0,2.24892598]
[1641875622830,0.00113685,3117.4,3117.0,3.24892598]
[1641875623630,0.00113685,3117.4,3117.0,2.44710598]
[1641875623830,0.00113685,3117.4,3117.0,1.44710598]
[1641875624031,0.00113685,3117.4,3117.0,1.64526598]
[1641875624277,0.00113685,3117.4,3117.0,0.34526598]
[1641875624479,0.00113685,3117.4,3117.0,0.04526598]
[1641875626080,0.00113685,3117.4,3116.9,2.05626598]
[1641875626482,0.00113685,3117.4,3117.0,0.00113685]
[1641875628824,0.00113685,3117.4,3116.9,0.00170527]